[Event "CZE-ch 2020"]
[Site "Pilsen"]
[Date "2020.08.27"]
[Round "5.13"]
[White "Kozusek, Daniel"]
[Black "Kusa, Jakub"]
[Result "1/2-1/2"]
[ECO "D02"]
[WhiteElo "2307"]
[BlackElo "2239"]
[Annotator "ChessBase"]
[PlyCount "163"]
[EventDate "2020.08.23"]
[EventType "swiss"]
[EventCountry "CZE"]
[SourceTitle "playchess.com"]
[Source "ChessBase"]
[SourceQuality "1"]
[TimeControl "40/5400+30:1800+30"]

1. d4 {[%emt 0:00:00]} d5 {[%emt 0:00:00]} 2. Nf3 {[%emt 0:00:00]} Nf6 {[%emt 0:00:00]} 3. g3 {[%emt 0:00:00]} e6 {[%emt 0:00:17]} 4. Bg2 {[%emt 0:00:00]} Be7 {[%emt 0:00:34]} 5. c4 {[%emt 0:00:00]} O-O {[%emt 0:00:53]} 6. O-O {[%emt 0:00:04]} dxc4 {[%emt 0:00:26]} 7. Qc2 {[%emt 0:00:08]} a6 {[%emt 0:00:14]} 8. a4 {[%emt 0:00:06]} Bd7 {[%emt 0:00:31]} 9. Rd1 {[%emt 0:00:27]} Bc6 {[%emt 0:02:09]} 10. Nc3 {[%emt 0:00:08]} Nbd7 {[%emt 0:06:55]} 11. e4 {[%emt 0:00:49]} b5 {[%emt 0:02:04]} 12. d5 {[%emt 0:19:19]} exd5 {[%emt 0:01:47]} 13. Nd4 {[%emt 0:00:21]} Bb7 {[%emt 0:03:21]} 14. exd5 {[%emt 0:00:05]} b4 {[%emt 0:07:30]} 15. Nc6 {[%emt 0:01:56]} Bxc6 {[%emt 0:02:02]} 16. dxc6 {[%emt 0:00:04]} bxc3 {[%emt 0:00:57]} 17. Qxc3 {[%emt 0:03:04]} Rb8 {[%emt 0:06:40]} 18. cxd7 {[%emt 0:01:16]} Nxd7 {[%emt 0:03:52]} 19. Qxc4 {[%emt 0:02:14]} a5 {[%emt 0:03:03]} 20. Bf4 {[%emt 0:03:50]} Rxb2 {[%emt 0:19:42]} 21. Qd4 {[%emt 0:06:15]} Re2 {[%emt 0:07:02]} 22. Qxd7 {[%emt 0:01:38]} Re1+ {[%emt 0:00:23]} 23. Bf1 {[%emt 0:00:41]} Qxd7 {[%emt 0:00:57]} 24. Rxd7 {[%emt 0:00:05]} Rxa1 {[%emt 0:00:06]} 25. Rxe7 {[%emt 0:00:02]} Rxa4 {[%emt 0:00:28]} 26. Rxc7 {[%emt 0:00:09]} f6 {[%emt 0:02:31]} 27. Ra7 {[%emt 0:02:25]} Ra1 {[%emt 0:01:00]} 28. Kg2 {[%emt 0:00:35]} a4 {[%emt 0:01:49]} 29. Bc4+ {[%emt 0:00:20]} Kh8 {[%emt 0:00:08]} 30. Bd6 {[%emt 0:00:29]} Rd8 {[%emt 0:01:17]} 31. Be7 {[%emt 0:00:13]} Rb8 {[%emt 0:00:58]} 32. h4 {[%emt 0:00:44]} h6 {[%emt 0:01:00]} 33. h5 {[%emt 0:00:46]} Rc8 {[%emt 0:03:15]} 34. Bb5 {[%emt 0:01:45]} Rb8 {[%emt 0:00:57]} 35. Bc6 {[%emt 0:07:13]} Rc8 {[%emt 0:01:44]} 36. Bd7 {[%emt 0:01:00]} Rb8 {[%emt 0:00:31]} 37. Kh3 {[%emt 0:01:09]} a3 {[%emt 0:03:34]} 38. Rxa3 {[%emt 0:00:49]} Rxa3 {[%emt 0:00:18]} 39. Bxa3 {[%emt 0:00:06]} Rd8 {[%emt 0:00:26]} 40. Bf5 {[%emt 0:00:39]} Rd5 {[%emt 0:00:31]} 41. Bg6 {[%emt 0:30:40]} Ra5 {[%emt 0:30:44]} 42. Bd6 {[%emt 0:01:31]} Ra6 {[%emt 0:00:54]} 43. Bf4 {[%emt 0:00:26]} Ra2 {[%emt 0:00:08]} 44. Be3 {[%emt 0:00:27]} Ra4 {[%emt 0:01:42]} 45. Kg2 {[%emt 0:00:45]} Rb4 {[%emt 0:00:48]} 46. Kf3 {[%emt 0:00:06]} Ra4 {[%emt 0:00:44]} 47. Ke2 {[%emt 0:00:10]} Ra3 {[%emt 0:00:35]} 48. Kd2 {[%emt 0:00:14]} Kg8 {[%emt 0:00:46]} 49. Kc2 {[%emt 0:00:10]} Kh8 {[%emt 0:00:43]} 50. Kb2 {[%emt 0:00:06]} Ra8 {[%emt 0:00:24]} 51. Kc3 {[%emt 0:00:15]} Ra4 {[%emt 0:01:43]} 52. Kb3 {[%emt 0:00:10]} Ra5 {[%emt 0:00:15]} 53. Kb4 {[%emt 0:00:19]} Rd5 {[%emt 0:00:22]} 54. Kc4 {[%emt 0:00:48]} Ra5 {[%emt 0:00:31]} 55. Bc5 {[%emt 0:00:07]} Ra8 {[%emt 0:00:31]} 56. Kd5 {[%emt 0:00:09]} Kg8 {[%emt 0:01:55]} 57. Ke6 {[%emt 0:00:05]} Ra6+ {[%emt 0:00:19]} 58. Ke7 {[%emt 0:00:39]} Ra5 {[%emt 0:00:57]} 59. Bf7+ {[%emt 0:00:28]} Kh7 {[%emt 0:00:30]} 60. Bd6 {[%emt 0:00:30]} Ra7+ {[%emt 0:01:37]} 61. Kf8 {[%emt 0:00:23]} Ra8+ {[%emt 0:01:46]} 62. Be8 {[%emt 0:00:09]} Ra2 {[%emt 0:00:50]} 63. Bg6+ {[%emt 0:01:47]} Kh8 {[%emt 0:00:44]} 64. Kf7 {[%emt 0:01:46]} Ra7+ {[%emt 0:00:25]} 65. Be7 {[%emt 0:00:10]} Rb7 {[%emt 0:00:36]} 66. f4 {[%emt 0:06:13]} Ra7 {[%emt 0:00:36]} 67. g4 {[%emt 0:00:18]} Rb7 {[%emt 0:01:49]} 68. Be4 {[%emt 0:00:10]} Ra7 {[%emt 0:01:14]} 69. Bg6 {[%emt 0:04:49]} Rb7 {[%emt 0:00:15]} 70. Kf8 {[%emt 0:02:11]} Rb8+ {[%emt 0:01:27]} 71. Be8 {[%emt 0:00:32]} Ra8 {[%emt 0:01:10]} 72. g5 {[%emt 0:01:03]} fxg5 {[%emt 0:00:37]} 73. fxg5 {[%emt 0:00:07]} hxg5 {[%emt 0:01:26]} 74. Bxg5 {[%emt 0:00:06]} Kh7 {[%emt 0:01:31]} 75. Be3 {[%emt 0:00:39]} Ra6 {[%emt 0:01:28]} 76. Bd4 {[%emt 0:01:11]} Ra8 {[%emt 0:00:49]} 77. Be3 {[%emt 0:00:46]} Ra6 {[%emt 0:00:41]} 78. Bd4 {[%emt 0:01:33]} Ra8 {[%emt 0:00:16]} 79. Ke7 {[%emt 0:00:18]} Rxe8+ {[%emt 0:00:12]} 80. Kxe8 {[%emt 0:00:06]} Kh6 {[%emt 0:00:07]} 81. Kf7 {[%emt 0:00:04]} Kxh5 {[%emt 0:00:10]} 82. Kxg7 1/2-1/2

[Event "CZE-ch 2020"]
[Site "Pilsen"]
[Date "2020.08.27"]
[Round "5.14"]
[White "Orsag, Milan"]
[Black "Simet, Martin"]
[Result "1-0"]
[ECO "E15"]
[WhiteElo "2300"]
[BlackElo "2194"]
[Annotator "ChessBase"]
[PlyCount "135"]
[EventDate "2020.08.23"]
[EventType "swiss"]
[EventCountry "CZE"]
[SourceTitle "playchess.com"]
[Source "ChessBase"]
[SourceQuality "1"]
[TimeControl "40/5400+30:1800+30"]

1. d4 {[%emt 0:00:00]} Nf6 {[%emt 0:00:26]} 2. Nf3 {[%emt 0:00:33]} e6 {[%emt 0:01:01]} 3. c4 {[%emt 0:00:48]} b6 {[%emt 0:01:39]} 4. g3 {[%emt 0:01:22]} Ba6 {[%emt 0:01:59]} 5. b3 {[%emt 0:03:42]} Bb4+ {[%emt 0:00:54]} 6. Bd2 {[%emt 0:00:08]} Be7 {[%emt 0:00:03]} 7. Bg2 {[%emt 0:00:28]} d5 {[%emt 0:00:21]} 8. Bc3 {[%emt 0:01:58]} O-O {[%emt 0:02:27]} 9. Nbd2 {[%emt 0:01:02]} Nbd7 {[%emt 0:01:54]} 10. Ne5 {[%emt 0:05:54]} Bb7 {[%emt 0:00:30]} 11. O-O {[%emt 0:01:53]} c5 {[%emt 0:02:20]} 12. dxc5 {[%emt 0:14:24]} Nxc5 {[%emt 0:02:28]} 13. Bb2 {[%emt 0:06:27]} Rc8 {[%emt 0:03:20]} 14. Rc1 {[%emt 0:02:40]} Qd6 {[%emt 0:03:43]} 15. e3 {[%emt 0:09:49]} Rfd8 {[%emt 0:01:56]} 16. Qe2 {[%emt 0:01:33]} Qb8 {[%emt 0:02:27]} 17. Rfd1 {[%emt 0:04:25]} a5 {[%emt 0:02:49]} 18. Bd4 {[%emt 0:07:21]} Qa8 {[%emt 0:05:13]} 19. cxd5 {[%emt 0:02:45]} Bxd5 {[%emt 0:03:48]} 20. f3 {[%emt 0:01:35]} Nfd7 {[%emt 0:04:28]} 21. Ndc4 {[%emt 0:05:13]} Qa7 {[%emt 0:13:07]} 22. e4 {[%emt 0:05:02]} Nxe5 {[%emt 0:04:00]} 23. Nxe5 {[%emt 0:01:48]} Bb7 {[%emt 0:03:01]} 24. Qe3 {[%emt 0:04:04]} Bf6 {[%emt 0:05:48]} 25. Nc4 {[%emt 0:01:04]} Be7 {[%emt 0:05:07]} 26. Kh1 {[%emt 0:00:47]} Ba6 {[%emt 0:01:30]} 27. Bf1 {[%emt 0:04:52]} h6 {[%emt 0:03:09]} 28. Qf2 {[%emt 0:01:59]} Bg5 {[%emt 0:03:57]} 29. Rb1 {[%emt 0:00:24]} Rd7 {[%emt 0:02:02]} 30. Ne5 {[%emt 0:02:12]} Rdc7 {[%emt 0:00:36]} 31. Bxc5 {[%emt 0:02:20]} Rxc5 {[%emt 0:01:14]} 32. Rd7 {[%emt 0:00:33]} Qa8 {[%emt 0:00:12]} 33. Bxa6 {[%emt 0:02:46]} Qxa6 {[%emt 0:00:05]} 34. f4 {[%emt 0:00:25]} Rc2 {[%emt 0:03:46]} 35. Rd2 {[%emt 0:00:33]} Rc1+ {[%emt 0:02:10]} 36. Rxc1 {[%emt 0:01:15]} Rxc1+ {[%emt 0:00:01]} 37. Kg2 {[%emt 0:00:05]} Be7 {[%emt 0:00:10]} 38. Rc2 {[%emt 0:02:47]} Bc5 {[%emt 0:01:46]} 39. Qe2 {[%emt 0:00:06]} Rg1+ {[%emt 0:00:52]} 40. Kh3 {[%emt 0:00:15]} Qb7 {[%emt 0:00:42]} 41. Rd2 {[%emt 0:31:08]} Qc8 {[%emt 0:19:01]} 42. Rd7 {[%emt 0:00:00]} Bf8 {[%emt 0:00:08]} 43. Rxf7 {[%emt 0:00:00]} Bd6 {[%emt 0:01:24]} 44. Nc4 {[%emt 0:00:00]} Bf8 {[%emt 0:02:56]} 45. Qh5 {[%emt 0:00:00]} e5+ {[%emt 0:00:51]} 46. f5 {[%emt 0:00:00]} Qc5 {[%emt 0:02:09]} 47. Rd7 {[%emt 0:00:00]} Qf2 {[%emt 0:04:50]} 48. Qf7+ {[%emt 0:00:00]} Kh7 {[%emt 0:00:34]} 49. Qg6+ {[%emt 0:00:00]} Kg8 {[%emt 0:00:01]} 50. Qe6+ {[%emt 0:00:00]} Kh7 {[%emt 0:01:09]} 51. Rd2 {[%emt 0:00:00]} Qf1+ {[%emt 0:00:10]} 52. Kh4 {[%emt 0:00:00]} Qf3 {[%emt 0:02:26]} 53. Qg6+ {[%emt 0:03:02]} Kg8 {[%emt 0:01:15]} 54. f6 {[%emt 0:02:57]} Re1 {[%emt 0:01:41]} 55. Nxe5 {[%emt 0:01:41]} Rxe4+ {[%emt 0:05:50]} 56. Ng4 {[%emt 0:00:09]} Qxf6+ {[%emt 0:03:07]} 57. Qxf6 {[%emt 0:00:05]} gxf6 {[%emt 0:00:04]} 58. Kh5 {[%emt 0:00:09]} Kf7 {[%emt 0:00:20]} 59. Nxh6+ {[%emt 0:00:29]} Ke6 {[%emt 0:00:28]} 60. Ng4 {[%emt 0:00:47]} f5 {[%emt 0:01:19]} 61. Nf2 {[%emt 0:00:11]} Re1 {[%emt 0:00:22]} 62. Nd3 {[%emt 0:00:31]} Ra1 {[%emt 0:00:05]} 63. Nf4+ {[%emt 0:00:18]} Kf7 {[%emt 0:01:18]} 64. Kg5 {[%emt 0:00:41]} b5 {[%emt 0:00:19]} 65. Kxf5 {[%emt 0:00:37]} a4 {[%emt 0:00:03]} 66. g4 {[%emt 0:00:40]} a3 {[%emt 0:00:01]} 67. g5 {[%emt 0:00:17]} Bb4 {[%emt 0:00:36]} 68. g6+ {[%emt 0:01:34]} 1-0

[Event "CZE-ch 2020"]
[Site "Pilsen"]
[Date "2020.08.27"]
[Round "5.15"]
[White "Simacek, Pavel"]
[Black "Nytra, Ondrej"]
[Result "1-0"]
[ECO "D31"]
[WhiteElo "2474"]
[BlackElo "1925"]
[Annotator "ChessBase"]
[PlyCount "57"]
[EventDate "2020.08.23"]
[EventType "swiss"]
[EventCountry "CZE"]
[SourceTitle "playchess.com"]
[Source "ChessBase"]
[SourceQuality "1"]
[TimeControl "40/5400+30:1800+30"]

1. d4 {[%emt 0:00:00]} d5 {[%emt 0:00:00]} 2. c4 {[%emt 0:00:04]} e6 {[%emt 0:00:00]} 3. Nc3 {[%emt 0:00:33]} c6 {[%emt 0:00:00]} 4. e4 {[%emt 0:00:22]} dxe4 {[%emt 0:00:00]} 5. Nxe4 {[%emt 0:00:05]} Bb4+ {[%emt 0:00:00]} 6. Bd2 {[%emt 0:00:05]} Qxd4 {[%emt 0:00:00]} 7. Bxb4 {[%emt 0:00:03]} Qxe4+ {[%emt 0:00:02]} 8. Be2 {[%emt 0:00:04]} Na6 {[%emt 0:00:05]} 9. Bd6 {[%emt 0:00:07]} Bd7 {[%emt 0:03:52]} 10. Nf3 {[%emt 0:00:54]} Nh6 {[%emt 0:02:03]} 11. O-O {[%emt 0:02:08]} Rd8 {[%emt 0:01:35]} 12. Re1 {[%emt 0:07:44]} Bc8 {[%emt 0:05:39]} 13. Bd3 {[%emt 0:00:49]} Qg4 {[%emt 0:03:20]} 14. h3 {[%emt 0:01:52]} Qh5 {[%emt 0:00:04]} 15. Re5 {[%emt 0:00:45]} f5 {[%emt 0:00:06]} 16. c5 {[%emt 0:00:27]} Nb4 {[%emt 0:06:05]} 17. Qe2 {[%emt 0:08:32]} Rxd6 {[%emt 0:03:01]} 18. cxd6 {[%emt 0:00:07]} O-O {[%emt 0:00:07]} 19. Bc4 {[%emt 0:00:32]} Nd5 {[%emt 0:00:34]} 20. Rxe6 {[%emt 0:12:19]} Bxe6 {[%emt 0:06:31]} 21. Qxe6+ {[%emt 0:00:09]} Qf7 {[%emt 0:00:07]} 22. Ng5 {[%emt 0:05:19]} Qxe6 {[%emt 0:00:06]} 23. Nxe6 {[%emt 0:00:04]} Rf7 {[%emt 0:00:09]} 24. Nc5 {[%emt 0:01:39]} Rf8 {[%emt 0:17:01]} 25. Nxb7 {[%emt 0:00:07]} Nf7 {[%emt 0:00:10]} 26. Rd1 {[%emt 0:00:26]} Rb8 {[%emt 0:01:02]} 27. Na5 {[%emt 0:00:35]} Rb6 {[%emt 0:09:03]} 28. d7 {[%emt 0:00:15]} Kf8 {[%emt 0:03:03]} 29. Re1 {[%emt 0:00:18]} 1-0

[Event "CZE-ch 2020"]
[Site "Pilsen"]
[Date "2020.08.27"]
[Round "5.16"]
[White "Havelka, Josef"]
[Black "Ludvik, Tomas"]
[Result "1-0"]
[ECO "B48"]
[WhiteElo "2367"]
[BlackElo "2202"]
[Annotator "ChessBase"]
[PlyCount "119"]
[EventDate "2020.08.23"]
[EventType "swiss"]
[EventCountry "CZE"]
[SourceTitle "playchess.com"]
[Source "ChessBase"]
[SourceQuality "1"]
[TimeControl "40/5400+30:1800+30"]

1. e4 {[%emt 0:00:00]} c5 {[%emt 0:00:00]} 2. Nf3 {[%emt 0:00:00]} e6 {[%emt 0:00:00]} 3. d4 {[%emt 0:00:18]} cxd4 {[%emt 0:00:00]} 4. Nxd4 {[%emt 0:00:04]} Nc6 {[%emt 0:00:03]} 5. Nc3 {[%emt 0:00:27]} Qc7 {[%emt 0:00:12]} 6. Be3 {[%emt 0:00:45]} a6 {[%emt 0:00:13]} 7. Bd3 {[%emt 0:01:02]} Nf6 {[%emt 0:01:00]} 8. O-O {[%emt 0:01:02]} b5 {[%emt 0:06:28]} 9. Kh1 {[%emt 0:27:41]} Bb7 {[%emt 0:10:08]} 10. a3 {[%emt 0:07:54]} Ne5 {[%emt 0:05:43]} 11. f4 {[%emt 0:20:41]} Nc4 {[%emt 0:01:41]} 12. Bxc4 {[%emt 0:00:05]} Qxc4 {[%emt 0:00:09]} 13. Qd3 {[%emt 0:02:38]} Rc8 {[%emt 0:02:10]} 14. Bg1 {[%emt 0:04:17]} d5 {[%emt 0:05:40]} 15. e5 {[%emt 0:03:52]} Ne4 {[%emt 0:00:34]} 16. Nxe4 {[%emt 0:00:09]} dxe4 {[%emt 0:00:46]} 17. Qg3 {[%emt 0:05:16]} g6 {[%emt 0:06:20]} 18. Nb3 {[%emt 0:01:27]} Bd5 {[%emt 0:08:16]} 19. Rac1 {[%emt 0:05:03]} h5 {[%emt 0:06:50]} 20. h3 {[%emt 0:03:04]} Be7 {[%emt 0:01:11]} 21. Rfe1 {[%emt 0:02:03]} O-O {[%emt 0:02:34]} 22. Nd2 {[%emt 0:00:15]} Qc6 {[%emt 0:02:40]} 23. Bd4 {[%emt 0:03:07]} Rfd8 {[%emt 0:02:53]} 24. Qe3 {[%emt 0:06:03]} a5 {[%emt 0:10:21]} 25. c3 {[%emt 0:00:13]} Kg7 {[%emt 0:04:00]} 26. Nxe4 {[%emt 0:01:24]} Rd7 {[%emt 0:11:49]} 27. Re2 {[%emt 0:00:26]} Bxe4 {[%emt 0:02:03]} 28. Qxe4 {[%emt 0:00:05]} Qc4 {[%emt 0:01:19]} 29. Rd1 {[%emt 0:01:36]} Rcd8 {[%emt 0:03:03]} 30. Red2 {[%emt 0:00:33]} a4 {[%emt 0:02:09]} 31. Qe3 {[%emt 0:00:41]} Rd5 {[%emt 0:01:28]} 32. Kh2 {[%emt 0:00:23]} R8d7 {[%emt 0:00:58]} 33. Qe2 {[%emt 0:01:34]} Qxe2 {[%emt 0:01:15]} 34. Rxe2 {[%emt 0:00:03]} Kf8 {[%emt 0:02:05]} 35. Kg3 {[%emt 0:00:48]} Ke8 {[%emt 0:00:12]} 36. Red2 {[%emt 0:00:47]} Bd8 {[%emt 0:01:00]} 37. Kf3 {[%emt 0:00:29]} Ba5 {[%emt 0:00:30]} 38. Ke4 {[%emt 0:00:46]} Kd8 {[%emt 0:00:41]} 39. g4 {[%emt 0:01:24]} hxg4 {[%emt 0:00:06]} 40. hxg4 {[%emt 0:00:05]} Kc7 {[%emt 0:00:24]} 41. f5 {[%emt 0:30:54]} gxf5+ {[%emt 0:30:26]} 42. gxf5 {[%emt 0:00:00]} exf5+ {[%emt 0:00:00]} 43. Kxf5 {[%emt 0:00:00]} Kb7 {[%emt 0:00:00]} 44. Rh1 {[%emt 0:00:00]} Bc7 {[%emt 0:00:00]} 45. Re2 {[%emt 0:00:00]} Kc6 {[%emt 0:00:00]} 46. Rh6+ {[%emt 0:00:00]} Kb7 {[%emt 0:00:00]} 47. Ke4 {[%emt 0:00:00]} Bd8 {[%emt 0:00:00]} 48. Rf2 {[%emt 0:00:00]} Bg5 {[%emt 0:00:00]} 49. Rh5 {[%emt 0:00:00]} Bd8 {[%emt 0:00:00]} 50. Rhf5 {[%emt 0:00:00]} Kc6 {[%emt 0:00:00]} 51. Rxf7 {[%emt 0:00:00]} Bg5 {[%emt 0:00:00]} 52. Rxd7 {[%emt 0:00:00]} Rxd7 {[%emt 0:00:00]} 53. Rg2 {[%emt 0:00:00]} Bc1 {[%emt 0:00:00]} 54. Rc2 {[%emt 0:00:00]} Bg5 {[%emt 0:00:00]} 55. c4 {[%emt 0:00:00]} Rh7 {[%emt 0:00:55]} 56. cxb5+ {[%emt 0:00:00]} Kxb5 {[%emt 0:00:02]} 57. Rc5+ {[%emt 0:00:00]} Ka6 {[%emt 0:00:11]} 58. Rc4 {[%emt 0:00:06]} Kb5 {[%emt 0:00:22]} 59. Rb4+ {[%emt 0:00:48]} Ka5 {[%emt 0:00:09]} 60. Bc3 {[%emt 0:00:23]} 1-0

[Event "CZE-ch 2020"]
[Site "Pilsen"]
[Date "2020.08.27"]
[Round "5.17"]
[White "Houska, Jiri"]
[Black "Stinka, Jakub"]
[Result "1-0"]
[ECO "E11"]
[WhiteElo "2202"]
[BlackElo "2299"]
[Annotator "ChessBase"]
[PlyCount "45"]
[EventDate "2020.08.23"]
[EventType "swiss"]
[EventCountry "CZE"]
[SourceTitle "playchess.com"]
[Source "ChessBase"]
[SourceQuality "1"]
[TimeControl "40/5400+30:1800+30"]

1. d4 {[%emt 0:02:19]} Nf6 {[%emt 0:00:00]} 2. Nf3 {[%emt 0:00:08]} e6 {[%emt 0:00:00]} 3. c4 {[%emt 0:00:07]} Bb4+ {[%emt 0:00:00]} 4. Bd2 {[%emt 0:00:12]} c5 {[%emt 0:03:01]} 5. Bxb4 {[%emt 0:00:47]} cxb4 {[%emt 0:00:10]} 6. g3 {[%emt 0:00:16]} O-O {[%emt 0:00:26]} 7. Bg2 {[%emt 0:00:03]} d6 {[%emt 0:00:38]} 8. O-O {[%emt 0:00:26]} Nc6 {[%emt 0:00:42]} 9. Nbd2 {[%emt 0:01:44]} e5 {[%emt 0:00:44]} 10. d5 {[%emt 0:00:50]} Nb8 {[%emt 0:00:50]} 11. c5 {[%emt 0:01:49]} e4 {[%emt 0:15:30]} 12. Ng5 {[%emt 0:11:03]} e3 {[%emt 0:01:22]} 13. Nde4 {[%emt 0:10:16]} exf2+ {[%emt 0:02:59]} 14. Rxf2 {[%emt 0:01:47]} Ng4 {[%emt 0:03:01]} 15. Rf4 {[%emt 0:07:11]} h6 {[%emt 0:07:03]} 16. Nh3 {[%emt 0:05:02]} Ne3 {[%emt 0:03:17]} 17. Qd2 {[%emt 0:05:04]} Nxg2 {[%emt 0:00:38]} 18. Kxg2 {[%emt 0:00:16]} dxc5 {[%emt 0:18:15]} 19. Nf6+ {[%emt 0:07:51]} Kh8 {[%emt 0:00:10]} 20. Nf2 {[%emt 0:10:42]} Nd7 {[%emt 0:10:20]} 21. N2e4 {[%emt 0:02:04]} b6 {[%emt 0:05:39]} 22. Raf1 {[%emt 0:01:17]} Bb7 {[%emt 0:00:29]} 23. Rh4 {[%emt 0:02:47]} 1-0

[Event "CZE-ch 2020"]
[Site "Pilsen"]
[Date "2020.08.27"]
[Round "5.18"]
[White "Nemcova, Karin"]
[Black "Mladek, Richard"]
[Result "0-1"]
[ECO "B90"]
[WhiteElo "1983"]
[BlackElo "2280"]
[Annotator "ChessBase"]
[PlyCount "50"]
[EventDate "2020.08.23"]
[EventType "swiss"]
[EventCountry "CZE"]
[SourceTitle "playchess.com"]
[Source "ChessBase"]
[SourceQuality "1"]
[TimeControl "40/5400+30:1800+30"]

1. e4 {[%emt 0:00:00]} c5 {[%emt 0:00:00]} 2. Nf3 {[%emt 0:00:00]} d6 {[%emt 0:00:00]} 3. d4 {[%emt 0:00:00]} cxd4 {[%emt 0:00:00]} 4. Nxd4 {[%emt 0:00:00]} Nf6 {[%emt 0:00:00]} 5. Nc3 {[%emt 0:00:00]} a6 {[%emt 0:00:00]} 6. Be3 {[%emt 0:00:06]} e5 {[%emt 0:00:00]} 7. Nb3 {[%emt 0:00:06]} Be6 {[%emt 0:00:05]} 8. f3 {[%emt 0:00:05]} Be7 {[%emt 0:00:05]} 9. Qd2 {[%emt 0:00:05]} O-O {[%emt 0:00:07]} 10. g4 {[%emt 0:02:21]} a5 {[%emt 0:01:31]} 11. g5 {[%emt 0:06:41]} Nh5 {[%emt 0:01:09]} 12. Bb5 {[%emt 0:00:54]} Na6 {[%emt 0:00:59]} 13. h4 {[%emt 0:03:34]} Nc7 {[%emt 0:05:09]} 14. Bb6 {[%emt 0:06:10]} Qb8 {[%emt 0:00:27]} 15. Nxa5 {[%emt 0:04:48]} Nxb5 {[%emt 0:02:38]} 16. Nxb5 {[%emt 0:00:08]} Bd8 {[%emt 0:11:49]} 17. Bxd8 {[%emt 0:02:30]} Qxd8 {[%emt 0:01:14]} 18. Nxb7 {[%emt 0:13:58]} Qb6 {[%emt 0:00:38]} 19. N7xd6 {[%emt 0:00:25]} Ng3 {[%emt 0:01:05]} 20. Qf2 {[%emt 0:03:48]} Qa5+ {[%emt 0:01:25]} 21. c3 {[%emt 0:01:53]} Nxh1 {[%emt 0:00:23]} 22. Qh2 {[%emt 0:06:52]} Bd7 {[%emt 0:12:59]} 23. Qxe5 {[%emt 0:05:15]} Bxb5 {[%emt 0:04:25]} 24. Qxb5 {[%emt 0:05:56]} Qa7 {[%emt 0:00:37]} 25. Nf5 {[%emt 0:09:07]} Qf2+ {[%emt 0:00:30]} 0-1

[Event "CZE-ch 2020"]
[Site "Pilsen"]
[Date "2020.08.27"]
[Round "5.19"]
[White "Vorisek, Jaroslav"]
[Black "Gnojek, Petr"]
[Result "0-1"]
[ECO "A41"]
[WhiteElo "2279"]
[BlackElo "2225"]
[Annotator "ChessBase"]
[PlyCount "94"]
[EventDate "2020.08.23"]
[EventType "swiss"]
[EventCountry "CZE"]
[SourceTitle "playchess.com"]
[Source "ChessBase"]
[SourceQuality "1"]
[TimeControl "40/5400+30:1800+30"]

1. d4 {[%emt 0:00:00]} d6 {[%emt 0:00:00]} 2. g3 {[%emt 0:00:35]} g6 {[%emt 0:00:00]} 3. Bg2 {[%emt 0:00:07]} Bg7 {[%emt 0:00:00]} 4. e4 {[%emt 0:00:42]} Nf6 {[%emt 0:00:11]} 5. Ne2 {[%emt 0:01:16]} O-O {[%emt 0:00:36]} 6. O-O {[%emt 0:00:42]} Nbd7 {[%emt 0:08:36]} 7. Nbc3 {[%emt 0:02:59]} c5 {[%emt 0:01:02]} 8. h3 {[%emt 0:05:32]} cxd4 {[%emt 0:08:31]} 9. Nxd4 {[%emt 0:00:51]} a6 {[%emt 0:03:14]} 10. a4 {[%emt 0:01:46]} Qc7 {[%emt 0:01:49]} 11. Kh2 {[%emt 0:10:31]} e5 {[%emt 0:04:21]} 12. Nde2 {[%emt 0:07:22]} b6 {[%emt 0:01:28]} 13. Bg5 {[%emt 0:03:12]} Bb7 {[%emt 0:02:01]} 14. Qd2 {[%emt 0:00:36]} Nc5 {[%emt 0:02:32]} 15. Bxf6 {[%emt 0:02:18]} Bxf6 {[%emt 0:00:05]} 16. Nd5 {[%emt 0:00:11]} Bxd5 {[%emt 0:00:07]} 17. Qxd5 {[%emt 0:00:07]} Ne6 {[%emt 0:05:37]} 18. c3 {[%emt 0:21:38]} Rac8 {[%emt 0:04:16]} 19. Rad1 {[%emt 0:14:30]} Rfd8 {[%emt 0:01:12]} 20. Rd2 {[%emt 0:00:42]} Qc4 {[%emt 0:02:45]} 21. b3 {[%emt 0:01:29]} Qxd5 {[%emt 0:00:28]} 22. Rxd5 {[%emt 0:00:03]} Nc5 {[%emt 0:07:52]} 23. Rb1 {[%emt 0:00:14]} Bg7 {[%emt 0:01:15]} 24. c4 {[%emt 0:04:39]} Ne6 {[%emt 0:03:23]} 25. Nc3 {[%emt 0:03:37]} Nd4 {[%emt 0:00:52]} 26. Bf1 {[%emt 0:00:37]} f5 {[%emt 0:08:35]} 27. Kg2 {[%emt 0:02:24]} f4 {[%emt 0:01:49]} 28. Be2 {[%emt 0:07:49]} h5 {[%emt 0:01:19]} 29. g4 {[%emt 0:00:47]} Rf8 {[%emt 0:07:28]} 30. Bf3 {[%emt 0:02:56]} hxg4 {[%emt 0:01:05]} 31. Bxg4 {[%emt 0:00:45]} f3+ {[%emt 0:01:13]} 32. Kf1 {[%emt 0:00:49]} Rcd8 {[%emt 0:00:16]} 33. b4 {[%emt 0:00:36]} Bh6 {[%emt 0:01:03]} 34. Rxd4 {[%emt 0:01:51]} exd4 {[%emt 0:00:08]} 35. Nd5 {[%emt 0:00:03]} b5 {[%emt 0:06:45]} 36. cxb5 {[%emt 0:01:04]} axb5 {[%emt 0:00:04]} 37. a5 {[%emt 0:00:05]} d3 {[%emt 0:00:13]} 38. Rd1 {[%emt 0:02:20]} d2 {[%emt 0:00:17]} 39. Be6+ {[%emt 0:00:13]} Kh7 {[%emt 0:00:42]} 40. Ne3 {[%emt 0:00:19]} Rde8 {[%emt 0:01:46]} 41. Bd5 {[%emt 0:31:03]} Rc8 {[%emt 0:30:26]} 42. Rxd2 {[%emt 0:00:00]} Rc1+ {[%emt 0:00:00]} 43. Rd1 {[%emt 0:00:00]} Bxe3 {[%emt 0:00:00]} 44. Rxc1 {[%emt 0:00:00]} Bxc1 {[%emt 0:00:00]} 45. a6 Rc8 {[%emt 0:00:00]} 46. e5 {[%emt 0:00:00]} Bg5 {[%emt 0:00:00]} 47. Bxf3 {[%emt 0:00:00]} Rc1+ {[%emt 0:00:00]} 0-1